bitfinex/quotes_BTCUSD_20240629
["timestamp","ask_amount","ask_price","bid_price","bid_amount"]
[1719624398116,1.54105223,60987.0,60986.0,0.01195167]
[1719624398356,1.5581175,60987.0,60986.0,0.01195167]
[1719624399197,1.71392925,60987.0,60986.0,0.01195167]
[1719624399424,1.87626823,60987.0,60986.0,0.01195167]
[1719624399624,2.07626823,60987.0,60986.0,0.01195167]
[1719624400042,1.87626823,60987.0,60986.0,0.01195167]
[1719624400263,1.87526823,60987.0,60986.0,0.00695167]
[1719624400502,2.07626823,60987.0,60986.0,0.00695167]
[1719624400917,2.07626823,60987.0,60978.0,0.000924]
[1719624400918,1.51120296,60987.0,60978.0,0.000924]
[1719624401135,0.4242,60979.0,60978.0,0.000924]
[1719624401354,3.143394,60979.0,60978.0,0.000924]
[1719624401573,3.102318,60979.0,60978.0,0.000924]
[1719624402037,3.102318,60979.0,60978.0,0.00188296]
[1719624402038,3.023415,60979.0,60978.0,0.00188296]
[1719624402481,3.04048128,60979.0,60978.0,0.00188296]
[1719624402906,3.04048128,60979.0,60978.0,0.00288296]
[1719624403124,2.52407728,60979.0,60978.0,0.00288296]
[1719624403327,2.52407728,60979.0,60978.0,0.00188296]
[1719624404186,0.54126628,60979.0,60978.0,0.00188296]
[1719624405453,0.68177177,60979.0,60978.0,0.00188296]
[1719624405666,3.48029877,60979.0,60978.0,0.00188296]
[1719624405872,3.322727,60979.0,60978.0,0.00188296]
[1719624406743,3.33979328,60979.0,60978.0,0.00188296]
[1719624407550,3.35314118,60979.0,60978.0,0.00188296]
[1719624408025,3.35215497,60979.0,60978.0,0.00188296]
[1719624408236,3.56415497,60979.0,60978.0,0.00188296]
[1719624408438,3.72648868,60979.0,60978.0,0.00288296]
[1719624408646,3.73848868,60979.0,60978.0,0.00288296]
[1719624409952,3.53848868,60979.0,60978.0,0.00288296]
[1719624410133,3.37615497,60979.0,60978.0,0.00288296]
[1719624410364,3.37616626,60979.0,60978.0,0.00288296]
[1719624410548,2.94840426,60979.0,60978.0,0.00288296]
[1719624410793,2.930965,60979.0,60978.0,0.00288296]
[1719624410996,2.94842807,60979.0,60978.0,0.00288296]
[1719624412836,3.11076178,60979.0,60978.0,0.00288296]
[1719624413433,2.85512807,60979.0,60978.0,0.00288296]
[1719624413646,1.97975007,60979.0,60978.0,0.00288296]
[1719624414059,1.97969508,60979.0,60978.0,0.00288296]
[1719624415137,1.97969508,60979.0,60978.0,0.00283893]
[1719624415138,1.59955508,60979.0,60978.0,0.00283893]
[1719624415359,1.58927808,60979.0,60978.0,0.00283893]
[1719624417352,1.39591206,60979.0,60978.0,0.00283893]
[1719624417812,1.39591205,60979.0,60978.0,0.00283893]
[1719624418916,0.76909818,60979.0,60978.0,0.00283893]
[1719624419135,0.01726618,60979.0,60978.0,0.30213893]
[1719624419365,0.0933,60979.0,60978.0,0.30213893]
[1719624419763,0.0933,60979.0,60978.0,0.32013893]
[1719624420227,0.1063,60979.0,60978.0,0.32213893]
[1719624420446,0.2063,60979.0,60978.0,0.32213893]
[1719624420702,0.2003,60979.0,60978.0,0.32113893]
[1719624420911,0.2003,60979.0,60978.0,0.32213893]
[1719624421132,0.2003,60979.0,60978.0,0.30213893]
[1719624421596,0.1933,60979.0,60978.0,0.30113893]
[1719624421830,0.0933,60979.0,60978.0,0.30113893]
[1719624422486,0.0933,60979.0,60978.0,0.30413893]
[1719624423417,0.0933,60979.0,60978.0,0.29546743]
[1719624424111,0.0933,60979.0,60978.0,0.29446743]
[1719624424591,0.0933,60979.0,60978.0,0.29146743]
[1719624425023,0.0983,60979.0,60978.0,0.29146743]
[1719624425716,0.0983,60979.0,60978.0,0.29446743]
[1719624426173,0.0933,60979.0,60978.0,0.29446743]
[1719624428053,0.0933,60979.0,60978.0,0.15816743]
[1719624428753,1.772661,60979.0,60978.0,0.15816743]
[1719624429009,1.872661,60979.0,60978.0,0.15816743]
[1719624429260,1.880881,60979.0,60978.0,0.15816743]
[1719624429491,0.136,60978.0,60974.0,0.000924]
[1719624429734,0.0933,60975.0,60974.0,0.000924]
[1719624429960,1.610222,60975.0,60974.0,0.000924]
[1719624430180,1.746186,60975.0,60974.0,0.000924]
[1719624430425,1.917596,60975.0,60974.0,0.000924]
[1719624430668,1.876987,60975.0,60974.0,0.000924]
[1719624430916,1.89405332,60975.0,60974.0,0.000924]
[1719624431329,1.68409832,60975.0,60974.0,0.001924]
[1719624431604,1.67382132,60975.0,60974.0,0.001924]
[1719624431822,1.67382132,60975.0,60974.0,0.000924]
[1719624432012,1.67382132,60975.0,60974.0,0.002924]
[1719624432272,1.67382132,60975.0,60974.0,0.000924]
[1719624432539,1.67413979,60975.0,60974.0,0.000924]
[1719624432762,1.67513979,60975.0,60974.0,0.001924]
[1719624432982,1.67513979,60975.0,60974.0,0.000924]
[1719624433219,1.68013979,60975.0,60974.0,0.001924]
[1719624433704,1.68013979,60975.0,60974.0,0.000924]
[1719624433705,1.67513979,60975.0,60974.0,0.000924]
[1719624433920,1.67513979,60975.0,60974.0,0.001924]
[1719624434165,1.68013979,60975.0,60974.0,0.001924]
[1719624434397,1.68113979,60975.0,60974.0,0.002924]
[1719624434628,0.21568479,60975.0,60974.0,0.001924]
[1719624434861,0.21668479,60975.0,60974.0,0.001924]
[1719624435293,0.1993,60975.0,60974.0,0.001924]
[1719624435507,0.902416,60975.0,60974.0,0.001924]
[1719624435730,0.91792085,60975.0,60974.0,0.001924]
[1719624436185,0.91392085,60975.0,60974.0,0.000924]
[1719624436399,0.70306785,60975.0,60974.0,0.001924]
[1719624436591,0.79636785,60975.0,60974.0,0.001924]
[1719624437087,0.01850485,60975.0,60974.0,0.68227965]
[1719624437306,0.003,60975.0,60974.0,0.71527965]
[1719624437562,0.002,60975.0,60974.0,0.70527965]
[1719624437771,0.002,60975.0,60974.0,0.71527965]
[1719624437772,0.001,60975.0,60974.0,0.71527965]
[1719624437985,0.00822,60979.0,60978.0,0.51901667]
[1719624438216,0.00822,60979.0,60978.0,0.70435565]
[1719624440132,0.00822,60979.0,60978.0,0.71435565]
[1719624440852,0.00822,60979.0,60978.0,0.72335565]
[1719624441336,0.00822,60979.0,60978.0,0.73435565]
[1719624442493,0.00822,60979.0,60978.0,0.70435565]
[1719624442740,0.00822,60979.0,60978.0,0.73435565]
[1719624443674,0.00822,60979.0,60978.0,0.70435565]
[1719624443857,0.00822,60979.0,60978.0,0.73435565]
[1719624444612,0.00822,60979.0,60978.0,0.72535565]
[1719624444826,0.00822,60979.0,60978.0,0.73535565]
[1719624445053,0.00822,60979.0,60978.0,0.72435565]
[1719624445308,0.00822,60979.0,60978.0,0.73635565]
[1719624446269,0.00822,60979.0,60978.0,0.72435565]
[1719624446503,0.00822,60979.0,60978.0,0.71435565]
[1719624446723,0.00822,60979.0,60978.0,0.68435565]
[1719624446941,0.00822,60979.0,60978.0,0.69835565]
[1719624447388,0.00822,60979.0,60978.0,0.70435565]
[1719624447605,0.00822,60979.0,60978.0,0.71835565]
[1719624447831,0.00822,60979.0,60978.0,0.72735565]
[1719624448070,0.00822,60979.0,60978.0,0.71335565]
[1719624448307,0.00822,60979.0,60978.0,0.70435565]
[1719624448533,0.00822,60979.0,60978.0,0.71335565]
[1719624448776,0.00822,60979.0,60978.0,0.71427965]
[1719624449002,0.00906,60979.0,60978.0,0.72627965]
[1719624449889,0.00906,60979.0,60978.0,0.71727965]
[1719624450101,0.00906,60979.0,60978.0,0.72427965]
[1719624450752,0.00906,60979.0,60978.0,0.70527965]
[1719624450967,0.00906,60979.0,60978.0,0.71327965]
[1719624451400,0.00906,60979.0,60978.0,0.72427965]
[1719624452614,0.00906,60979.0,60978.0,0.70427965]
[1719624453499,0.00906,60979.0,60978.0,0.72427965]
[1719624453737,0.00906,60979.0,60978.0,0.70427965]
[1719624453970,0.00906,60979.0,60978.0,0.73427965]
[1719624454201,0.00906,60979.0,60978.0,0.87747965]
[1719624454435,0.00906,60979.0,60978.0,1.10747965]
[1719624454882,0.00906,60979.0,60978.0,1.08847965]
[1719624455119,0.00906,60979.0,60978.0,0.91647965]
[1719624455335,0.00906,60979.0,60978.0,0.90247965]
[1719624455827,0.00906,60979.0,60978.0,0.88647965]
[1719624456091,0.00906,60979.0,60978.0,0.91647965]
[1719624456822,0.00906,60979.0,60978.0,0.90247965]
[1719624457268,0.00906,60979.0,60978.0,1.01522965]
[1719624457507,0.00906,60979.0,60978.0,1.21814965]
[1719624457742,0.00906,60979.0,60978.0,1.44814965]
[1719624458412,0.00906,60979.0,60978.0,1.43414965]
[1719624458843,0.00906,60979.0,60978.0,1.24814965]
[1719624459137,0.00906,60979.0,60978.0,1.44814965]
[1719624459372,0.00906,60979.0,60978.0,1.24814965]
[1719624460483,0.00906,60979.0,60978.0,1.23414965]
[1719624461140,0.00898531,60979.0,60978.0,1.23414965]
[1719624461590,0.00898531,60979.0,60978.0,1.21522965]
[1719624462294,0.00084,60979.0,60978.0,1.24814965]
[1719624463199,0.00084,60979.0,60978.0,1.44814965]
[1719624464569,0.00084,60979.0,60978.0,1.51387165]
[1719624465982,0.00084,60979.0,60978.0,1.60717165]
[1719624466848,0.009,60979.0,60978.0,1.60717165]
[1719624473426,0.009,60979.0,60978.0,1.80717165]
[1719624474099,0.009,60979.0,60978.0,1.79317165]
[1719624474363,0.009,60979.0,60978.0,1.77917165]
[1719624474592,0.009,60979.0,60978.0,1.79317165]
[1719624475075,0.009,60979.0,60978.0,1.79908308]
[1719624475318,0.009,60979.0,60978.0,1.81308308]
[1719624475550,0.009,60979.0,60978.0,1.58308308]
[1719624475771,0.009,60979.0,60978.0,1.81308308]
[1719624476483,0.009,60979.0,60978.0,1.82708308]
[1719624476754,0.009,60979.0,60978.0,1.81308308]
[1719624477219,0.009,60979.0,60978.0,1.82708308]
[1719624478127,0.009,60979.0,60978.0,0.75865165]
[1719624478355,0.009,60979.0,60978.0,0.72865165]
[1719624478582,0.009,60979.0,60978.0,0.88665165]
[1719624478826,0.009,60979.0,60978.0,0.74465165]
[1719624479526,0.009,60979.0,60978.0,0.76765165]
[1719624479997,0.009,60979.0,60978.0,0.75365165]
[1719624480698,0.009,60979.0,60978.0,0.76765165]
[1719624480965,0.009,60979.0,60978.0,0.78165165]
[1719624481401,0.009,60979.0,60978.0,0.65890165]
[1719624481625,0.009,60979.0,60978.0,0.48570165]
[1719624481861,0.009,60979.0,60978.0,0.50970165]
[1719624482993,0.009,60979.0,60978.0,0.59100511]
[1719624483891,0.009,60979.0,60978.0,0.58100511]
[1719624484121,0.009,60979.0,60978.0,0.51528311]
[1719624484726,0.0429101,60990.0,60989.0,0.19971667]
[1719624486086,0.0429101,60990.0,60989.0,0.20771667]
[1719624486572,0.2668301,60990.0,60989.0,0.21971667]
[1719624486811,0.9736131,60990.0,60989.0,0.21971667]
[1719624487050,0.9361131,60990.0,60989.0,0.21971667]
[1719624487541,0.8646571,60990.0,60989.0,0.21971667]
[1719624487774,0.8233271,60990.0,60989.0,0.02]
[1719624488000,0.8233271,60990.0,60989.0,0.22299589]
[1719624488231,0.84054397,60990.0,60989.0,0.22299589]
[1719624489366,0.8233271,60990.0,60989.0,0.22299589]
[1719624489629,0.84051463,60990.0,60989.0,0.22299589]
[1719624489880,0.84051463,60990.0,60989.0,0.02327922]
[1719624490106,1.07371463,60990.0,60989.0,0.02327922]
[1719624490553,1.07371463,60990.0,60989.0,0.02819805]
[1719624491045,1.07371463,60990.0,60989.0,0.02019805]
[1719624491269,1.07371463,60990.0,60989.0,0.00819805]
[1719624491741,1.07371463,60990.0,60989.0,0.00919805]
[1719624491976,1.07471463,60990.0,60989.0,0.00919805]
[1719624492670,1.07399008,60990.0,60989.0,0.00919805]
[1719624494229,1.23932906,60990.0,60989.0,0.00919805]
[1719624495143,1.22186608,60990.0,60989.0,0.01741805]
[1719624495364,1.23953589,60990.0,60989.0,0.01741805]
[1719624495988,1.23952595,60990.0,60989.0,0.01741805]
[1719624496421,1.22186608,60990.0,60989.0,0.01741805]
[1719624496650,3.68641902,60990.0,60989.0,0.01741805]
[1719624496879,3.98641902,60990.0,60989.0,0.01741805]
[1719624497819,3.98641902,60990.0,60989.0,0.01737097]
[1719624498026,3.34557602,60990.0,60989.0,0.01737097]
[1719624498906,3.34554712,60990.0,60989.0,0.01737097]
[1719624499133,3.34554718,60990.0,60989.0,0.01737097]
[1719624500454,0.0311,60987.0,60978.0,0.468424]
[1719624500674,3.64359318,60986.0,60978.0,0.468424]
[1719624500902,3.540065,60985.0,60978.0,0.468424]
[1719624501123,0.2332,60979.0,60978.0,0.468424]
[1719624501340,0.3091,60979.0,60978.0,0.468424]
[1719624502221,3.747769,60979.0,60978.0,0.468424]
[1719624502428,3.54788214,60979.0,60978.0,0.475424]
[1719624502657,2.61464214,60979.0,60978.0,0.478424]
[1719624502869,2.05778814,60979.0,60978.0,0.478424]
[1719624503083,1.79836714,60979.0,60978.0,0.478424]
[1719624503301,1.73054014,60979.0,60978.0,0.478424]
[1719624503770,1.85134014,60979.0,60978.0,0.478424]
[1719624504873,1.63755114,60979.0,60978.0,0.478424]
[1719624505340,1.51412814,60979.0,60978.0,0.478424]
[1719624505562,0.70120384,60979.0,60978.0,0.478424]
[1719624505806,0.70120384,60979.0,60978.0,0.010924]
[1719624506030,0.70120358,60979.0,60978.0,0.010924]
[1719624508455,0.70134202,60979.0,60978.0,0.010924]
[1719624508691,0.7012739,60979.0,60978.0,0.010924]
[1719624508925,0.6997323,60979.0,60978.0,0.010924]
[1719624509806,0.6825954,60979.0,60978.0,0.010924]
[1719624510020,0.69986496,60979.0,60978.0,0.010924]
[1719624510485,0.44562796,60979.0,60978.0,0.010924]
[1719624510928,0.44558762,60979.0,60978.0,0.010924]
[1719624511387,0.42831806,60979.0,60978.0,0.010924]
[1719624511627,3.21310806,60979.0,60978.0,0.010924]
[1719624512268,3.23040696,60979.0,60978.0,0.010924]
[1719624512717,3.39274594,60979.0,60978.0,0.010924]
[1719624513144,3.39274594,60979.0,60978.0,0.003924]
[1719624513408,3.39274594,60979.0,60978.0,0.000924]
[1719624513620,3.40074594,60979.0,60978.0,0.001924]
[1719624514261,3.38306394,60979.0,60978.0,0.000924]
[1719624514474,3.38306394,60979.0,60978.0,0.001924]
[1719624514475,3.38806394,60979.0,60978.0,0.001924]
[1719624515118,3.10080394,60979.0,60978.0,0.001924]
[1719624515346,3.16510898,60979.0,60978.0,0.001924]
[1719624515826,3.16910898,60979.0,60978.0,0.001924]
[1719624518275,3.15204136,60979.0,60978.0,0.001924]
[1719624518733,3.16910924,60979.0,60978.0,0.001924]
[1719624521786,3.16910927,60979.0,60978.0,0.001924]
[1719624523342,2.36248195,60979.0,60978.0,0.001924]
[1719624525069,2.34541404,60979.0,60978.0,0.001924]
[1719624525287,2.36285504,60979.0,60978.0,0.001924]
[1719624525523,2.34541404,60979.0,60978.0,0.001924]
[1719624525743,2.36285504,60979.0,60978.0,0.001924]
[1719624526185,2.36285504,60979.0,60978.0,0.00184468]
[1719624527539,2.47839236,60979.0,60978.0,0.00184468]
[1719624528432,2.47825546,60979.0,60978.0,0.00184468]
[1719624531425,2.47824098,60979.0,60978.0,0.00184468]
[1719624534752,2.47801921,60979.0,60978.0,0.00184468]
[1719624538219,2.26918189,60979.0,60978.0,0.00184468]
[1719624538446,2.36248189,60979.0,60978.0,0.00184468]
[1719624538681,2.12588189,60979.0,60978.0,0.00184468]
[1719624540214,2.12588189,60979.0,60978.0,0.0017751]
[1719624540865,2.12610002,60979.0,60978.0,0.0017751]
[1719624541105,2.54003373,60979.0,60978.0,0.0017751]
[1719624543628,2.53986515,60979.0,60978.0,0.0017751]
[1719624544113,2.53993659,60979.0,60978.0,0.0017751]
[1719624545243,2.54077659,60979.0,60978.0,0.0017751]
[1719624546784,3.97351836,60979.0,60978.0,0.0017751]
[1719624547012,3.94066036,60979.0,60978.0,0.0017751]
[1719624547932,3.9406189,60979.0,60978.0,0.0017751]
[1719624549447,3.6890189,60979.0,60978.0,0.0017751]
[1719624549660,3.6032169,60979.0,60978.0,0.0017751]
[1719624550089,3.05399652,60979.0,60978.0,0.0017751]
[1719624550298,3.07122233,60979.0,60978.0,0.0017751]
[1719624551423,2.99719581,60979.0,60978.0,0.0017751]
[1719624551623,3.09049581,60979.0,60978.0,0.0017751]
[1719624551843,3.00267081,60979.0,60978.0,0.0017751]
[1719624552083,2.99445081,60979.0,60978.0,0.0017751]
[1719624552318,3.09445081,60979.0,60978.0,0.0017751]
[1719624553357,3.25678452,60979.0,60978.0,0.0017751]
[1719624553572,3.25678452,60979.0,60974.0,0.000924]
[1719624553573,0.2392,60978.0,60974.0,0.000924]
[1719624553791,0.0933,60975.0,60974.0,0.000924]
[1719624554054,3.533365,60975.0,60974.0,0.000924]
[1719624554263,3.78353762,60975.0,60974.0,0.000924]
[1719624554482,3.74518039,60975.0,60974.0,0.000924]
[1719624554937,3.89535301,60975.0,60974.0,0.000924]
[1719624555149,3.74518039,60975.0,60974.0,0.000924]
[1719624555376,3.76266273,60975.0,60974.0,0.000924]
[1719624555609,4.15203535,60975.0,60974.0,0.000924]
[1719624556031,4.23430646,60975.0,60974.0,0.000924]
[1719624556385,4.13149107,60975.0,60974.0,0.001924]
[1719624556616,4.03173762,60975.0,60974.0,0.001924]
[1719624556819,4.1331094,60975.0,60974.0,0.001924]
[1719624557373,4.49573171,60975.0,60974.0,0.001924]
[1719624557585,4.49573171,60975.0,60962.0,0.2691]
[1719624557586,0.239,60969.0,60962.0,0.1428]
[1719624557797,0.0933,60963.0,60962.0,0.1428]
[1719624558020,1.619828,60963.0,60962.0,0.1428]
[1719624558265,1.719828,60963.0,60962.0,0.1428]
[1719624558708,1.719828,60963.0,60961.0,0.000924]
[1719624558922,3.006644,60962.0,60961.0,0.000924]
[1719624559155,2.306209,60962.0,60961.0,0.000924]
[1719624559391,2.32461261,60962.0,60961.0,0.000924]
[1719624560094,2.45335288,60962.0,60961.0,0.000924]
[1719624560938,2.45335288,60962.0,60961.0,0.004924]
[1719624561383,2.45335288,60962.0,60961.0,0.001924]
[1719624561598,2.45335288,60962.0,60961.0,0.005924]
[1719624562218,2.45329392,60962.0,60961.0,0.005924]
[1719624563275,2.43442375,60962.0,60961.0,0.005924]
[1719624563492,2.45329545,60962.0,60961.0,0.005924]
[1719624563707,2.32502174,60962.0,60961.0,0.005924]
[1719624563929,0.11881274,60962.0,60961.0,0.005924]
[1719624564168,2.75930774,60962.0,60961.0,0.005924]
[1719624564812,2.75930774,60962.0,60961.0,0.004924]
[1719624565052,2.75930774,60962.0,60961.0,0.000924]
[1719624565264,2.76130774,60962.0,60961.0,0.000924]
[1719624565531,2.92364145,60962.0,60961.0,0.000924]
[1719624566429,2.90476975,60962.0,60961.0,0.000924]
[1719624566640,3.07357328,60962.0,60961.0,0.000924]
[1719624567080,3.30927328,60962.0,60961.0,0.000924]
[1719624567299,3.15910066,60962.0,60961.0,0.000924]
[1719624567565,3.30927328,60962.0,60961.0,0.000924]
[1719624568003,2.92340066,60962.0,60961.0,0.000924]
[1719624568239,3.05494237,60962.0,60961.0,0.000924]
[1719624568450,2.92356287,60962.0,60961.0,0.000924]
[1719624569323,3.07373549,60962.0,60961.0,0.000924]
[1719624569751,3.07378422,60962.0,60961.0,0.000924]
[1719624570163,3.05494237,60962.0,60961.0,0.000924]
[1719624570378,3.07378423,60962.0,60961.0,0.000924]
[1719624571965,2.92361161,60962.0,60961.0,0.000924]
[1719624572419,3.07378423,60962.0,60961.0,0.000924]
[1719624572861,3.23612321,60962.0,60961.0,0.000924]
[1719624573078,3.41756468,60962.0,60961.0,0.000924]
[1719624573288,3.6716457,60962.0,60961.0,0.000924]
[1719624573518,3.65326468,60962.0,60961.0,0.000924]
[1719624573784,0.35017262,60961.0,60960.0,0.009218]
[1719624574001,4.0525766,60961.0,60960.0,0.009218]
[1719624574208,4.13777671,60961.0,60960.0,0.009218]
[1719624574918,4.1562866,60961.0,60960.0,0.009218]
[1719624575593,4.24439549,60961.0,60960.0,0.009218]
[1719624575818,4.24639549,60961.0,60960.0,0.009218]
[1719624576297,4.16316765,60961.0,60960.0,0.009218]
[1719624576501,4.24618205,60961.0,60960.0,0.009218]
[1719624576970,4.28925433,60961.0,60960.0,0.009218]
[1719624577183,0.15017262,60957.0,60955.0,0.009218]
[1719624577407,3.633365,60956.0,60955.0,0.009218]
[1719624577633,3.515571,60956.0,60955.0,0.009218]
[1719624577849,3.53396194,60956.0,60955.0,0.009218]
[1719624578522,3.41068394,60956.0,60955.0,0.010218]
[1719624578740,3.57301765,60956.0,60955.0,0.009218]
[1719624578961,3.34842565,60956.0,60955.0,0.009218]
[1719624579176,3.36042565,60956.0,60955.0,0.010218]
[1719624579395,3.30609351,60956.0,60955.0,0.010218]
[1719624580538,3.24491851,60956.0,60955.0,0.010218]
[1719624580763,3.24491851,60956.0,60954.0,0.248518]
[1719624580993,2.9719916,60955.0,60954.0,0.248518]
[1719624581215,3.0719916,60955.0,60954.0,0.248518]
[1719624582374,3.0929584,60955.0,60954.0,0.248518]
[1719624582594,3.09285521,60955.0,60954.0,0.248518]
[1719624584114,2.89806621,60955.0,60954.0,0.248518]
[1719624584535,2.90406621,60955.0,60954.0,0.248518]
[1719624585856,2.90405144,60955.0,60954.0,0.248518]
[1719624586319,2.90405129,60955.0,60954.0,0.248518]
[1719624586539,1.01254669,60955.0,60954.0,0.248518]
[1719624588828,0.22014869,60955.0,60954.0,0.248518]
[1719624589076,1.430783,60955.0,60954.0,0.248518]
[1719624589295,1.460783,60955.0,60954.0,0.248518]
[1719624589560,1.62311671,60955.0,60954.0,0.248518]
[1719624590435,1.58300271,60955.0,60954.0,0.248518]
[1719624590645,1.5530354,60955.0,60954.0,0.248518]
[1719624591482,1.5408514,60955.0,60954.0,0.248518]
[1719624591704,1.23851769,60955.0,60954.0,0.248518]
[1719624592383,1.19281497,60955.0,60954.0,0.248518]
[1719624593321,1.19281497,60955.0,60954.0,0.24846964]
[1719624595543,1.19265396,60955.0,60954.0,0.24846964]
[1719624595979,1.19277105,60955.0,60954.0,0.24846964]
[1719624597377,1.33204815,60955.0,60954.0,0.24846964]
[1719624598693,1.33211991,60955.0,60954.0,0.24846964]
[1719624599720,0.35927791,60955.0,60954.0,0.24846964]
[1719624599968,0.22000081,60955.0,60954.0,0.24846964]
[1719624600161,0.2023,60955.0,60954.0,0.24846964]
[1719624600316,0.2023,60955.0,60954.0,0.31829702]
[1719624600525,0.109,60955.0,60954.0,0.31879702]
[1719624600740,0.009,60955.0,60954.0,0.51851369]
[1719624601641,0.003,60955.0,60954.0,0.51851369]
[1719624602099,0.009,60955.0,60954.0,0.51851369]
[1719624602561,0.003,60955.0,60954.0,0.51851369]
[1719624603010,0.0933,60956.0,60955.0,0.19971667]
[1719624603226,1.368476,60956.0,60955.0,0.46091667]
[1719624603455,1.597909,60956.0,60955.0,0.46091667]
[1719624603677,1.639279,60956.0,60955.0,0.51074405]
[1719624603896,1.40935733,60956.0,60955.0,0.51074405]
[1719624604553,1.40935733,60956.0,60955.0,0.53174405]
[1719624604554,0.49965333,60956.0,60955.0,0.53174405]
[1719624604819,0.1,60956.0,60955.0,0.53174405]
[1719624605049,0.0933,60961.0,60960.0,0.32462738]
[1719624605264,0.378791,60961.0,60960.0,0.52434405]
[1719624605494,0.325294,60961.0,60960.0,0.52434405]
[1719624605713,0.268423,60961.0,60960.0,0.52434405]
[1719624606151,0.1,60961.0,60960.0,0.68668303]
[1719624606357,0.19093668,60977.0,60965.0,0.19971667]
[1719624606593,0.19093668,60977.0,60967.0,0.04982738]
[1719624606594,3.540065,60976.0,60967.0,0.04982738]
[1719624606799,0.0933,60968.0,60967.0,0.04982738]
[1719624607012,1.767059,60968.0,60967.0,0.04982738]
[1719624607269,0.08130346,60984.0,60971.0,0.04982738]
[1719624607270,0.02120828,60979.0,60971.0,0.04982738]
[1719624607455,2.6181,60978.0,60972.0,0.2548]
[1719624607677,0.0933,60973.0,60972.0,0.2548]
[1719624607882,1.591726,60973.0,60972.0,0.2548]
[1719624608546,1.691726,60973.0,60972.0,0.2548]
[1719624609231,1.697726,60973.0,60972.0,0.2558]
[1719624610323,1.705726,60973.0,60972.0,0.2558]
[1719624612305,1.72279399,60973.0,60972.0,0.2558]
[1719624613697,1.72279396,60973.0,60972.0,0.2558]
[1719624616379,0.91434596,60973.0,60972.0,0.32562738]
[1719624616626,0.60837596,60973.0,60972.0,0.32562738]
[1719624617104,0.591308,60973.0,60972.0,0.30562738]
[1719624617564,0.591308,60973.0,60972.0,0.2558]
[1719624618019,0.20721654,60973.0,60972.0,0.2558]
[1719624618266,0.20721654,60973.0,60972.0,0.30562738]
[1719624618491,1.65349854,60973.0,60972.0,0.32562738]
[1719624618720,1.65349854,60973.0,60972.0,0.52534405]
[1719624618721,0.13098372,60973.0,60972.0,0.52534405]
[1719624618970,0.03106718,60973.0,60972.0,0.52534405]
[1719624619222,0.03106718,60973.0,60972.0,0.53440737]
[1719624619223,0.29022918,60973.0,60972.0,0.53440737]
[1719624619442,0.28022918,60973.0,60972.0,0.53440737]
[1719624619876,0.27222918,60973.0,60972.0,0.53440737]
[1719624620088,0.363162,60973.0,60972.0,0.53440737]
[1719624620611,0.363162,60973.0,60972.0,0.52534405]
[1719624620840,0.357162,60973.0,60972.0,0.53340737]
[1719624621305,0.349162,60973.0,60972.0,0.52434405]
[1719624621532,0.349162,60973.0,60972.0,0.46357999]
[1719624621771,0.349162,60973.0,60972.0,0.46557999]
[1719624621772,0.350162,60973.0,60972.0,0.46557999]
[1719624622000,0.350162,60973.0,60972.0,0.01106332]
[1719624626071,0.350162,60973.0,60972.0,0.002]
[1719624626294,0.350162,60973.0,60972.0,0.01106332]
[1719624628087,0.350162,60973.0,60972.0,0.00906332]
[1719624628320,0.349162,60973.0,60972.0,0.01106332]
[1719624628756,0.350162,60973.0,60972.0,0.01106332]
[1719624629185,0.1943,60973.0,60972.0,0.01106332]
[1719624629413,0.1933,60973.0,60972.0,0.01106332]
[1719624629632,2.531299,60973.0,60972.0,0.01206332]
[1719624630274,2.303241,60973.0,60972.0,0.01106332]
[1719624630505,2.32030897,60973.0,60972.0,0.00906332]
[1719624630967,2.32530897,60973.0,60972.0,0.00900181]
[1719624631823,2.33230897,60973.0,60972.0,0.01000181]
[1719624632234,2.30599897,60973.0,60972.0,0.01000181]
[1719624632468,0.44349897,60973.0,60972.0,0.53154586]
[1719624633079,0.426431,60973.0,60972.0,0.53154586]
[1719624634373,0.333131,60973.0,60972.0,0.53154586]
[1719624634615,0.360731,60973.0,60972.0,0.53154586]
[1719624634837,0.2053,60973.0,60972.0,0.53154586]
[1719624635066,0.267431,60973.0,60972.0,0.53154586]
[1719624635269,0.360731,60973.0,60972.0,0.53154586]
[1719624635931,0.353731,60973.0,60972.0,0.53054586]
[1719624636367,0.354731,60973.0,60972.0,0.53054586]
[1719624637008,0.349731,60973.0,60972.0,0.53054586]
[1719624637434,0.349731,60973.0,60972.0,0.53254586]
[1719624637652,0.349731,60973.0,60972.0,0.53054586]
[1719624637859,0.348731,60973.0,60972.0,0.53054586]
[1719624638085,0.348731,60973.0,60972.0,0.53254586]
[1719624638373,0.349731,60973.0,60972.0,0.53054586]
[1719624638808,0.349731,60973.0,60972.0,0.53254586]
[1719624639649,0.348731,60973.0,60972.0,0.53254586]
[1719624640093,0.349731,60973.0,60972.0,0.53254586]
[1719624640509,0.349731,60973.0,60972.0,0.53146986]
[1719624640731,0.350571,60973.0,60972.0,0.53146986]
[1719624640940,0.350571,60973.0,60972.0,0.53346986]
[1719624641172,0.350571,60973.0,60972.0,0.53146986]
[1719624641390,0.19514,60973.0,60972.0,0.53346986]
[1719624641802,0.09414,60973.0,60972.0,0.53146986]
[1719624642234,0.09414,60973.0,60972.0,0.53346986]
[1719624642904,0.09514,60973.0,60972.0,0.53346986]
[1719624643387,0.00184,60973.0,60972.0,0.70580884]
[1719624643612,0.00184,60973.0,60972.0,0.72680884]
[1719624643846,0.00184,60973.0,60972.0,0.72880884]
[1719624644093,0.00184,60973.0,60972.0,0.72680884]
[1719624644820,0.00084,60973.0,60972.0,0.72680884]
[1719624645022,0.00084,60973.0,60972.0,0.73480884]
[1719624645237,0.00184,60973.0,60972.0,0.73480884]
[1719624645441,0.00184,60973.0,60972.0,0.72280884]
[1719624645683,0.00184,60973.0,60972.0,0.72680884]
[1719624645684,0.00084,60973.0,60972.0,0.72680884]
[1719624645900,0.00184,60973.0,60972.0,0.73280884]
[1719624647064,0.00184,60973.0,60972.0,0.74180884]
[1719624648557,0.00184,60973.0,60972.0,0.73180884]
[1719624648979,0.00184,60973.0,60972.0,0.74180884]
[1719624649212,0.00184,60973.0,60972.0,0.73180884]
[1719624649430,0.00184,60973.0,60972.0,0.74180884]
[1719624649651,0.00184,60973.0,60972.0,0.73180884]
[1719624650311,0.00184,60973.0,60972.0,0.74180884]
[1719624651672,0.00184,60973.0,60972.0,0.73180884]